Workbook

Sheet Contents
B2: Contents: Gross domestic product (GDP) annual data 1993-
B4: Guide | C4: Definitions and explanations
B6: Data | C6: Time series
B8: Graph 1 | C8: GDP (1993- ), volume index, year 1993=100
B10: Graph 2 | C10: GDP change in volume, percent (1994- ).
B12: Graph 3 | C12: GDP per capita (1993- ), thousand SEK in current prices.
B14: Graph 4 | C14: Exports and imports of goods and services (1993- ). Relation to GDP, percent. Current prices
B16: Graph 5 | C16: Consumtion and capital formation (1993- ). Relation to GDP, percent. Current prices

Sheet Guide
B2: Guide
B4: Printing tips | C4: Default settings for page setup of all tabs with diagrams enlarge print to 120%, and contents are centred vertically and horizontally. If printing of the diagram is not satisfactory, you can change settings under page setup to suit your printer.
C5: If needed, you may also change other features, such as colour of curve, formatting of gridlines, etc.
B8: Definitions & explanations
C10: Graphs 1,2 & 3 show various GDP estimates 1993- . They are GDP volume index, year 1993 = 100, and change in volume, percent, as well as GDP per capita, expressed in current prices.
C12: Graph 4 shows exports and imports of goods and serives in relation to GDP, percent. Current prices, 1993-
C14: Graph 5 shows household and government final consumption expenditure, and total gross capital formation in relation to GDP, percent. Current prices, 1993-

Sheet Data
A1: Gross domestic product (GDP) annual data 1993- | F1: =[0]!timePeriodEng -> 
B2: GDP, current prices | C2: SEK million. Current prices. | H2: GDP | J2: Average population | K2: GDP per capita (Current prices) | L2: Relation to GDP (%)
A3: Year | B3: SEK million | C3: Exports of goods and services | D3: Imports of goods and services | E3: HFCE | F3: GFCE | G3: GCF | H3: Change in volume, % | I3: Volume Index, year 1993=100 | J3: 1 000 persons | K3: SEK thousand | L3: Exports of goods and services | M3: Imports of goods and services | N3: HFCE | O3: GFCE | P3: GCF
A4: Bruttonationalprodukt (BNP) årsdata 1993- | F4: =[0]!timeperiodSv -> 
B5: BNP, löpande priser | C5: Miljoner kronor. Löpande priser. | H5: BNP | J5: Medelfolk- mängd | K5: BNP per capita (Löpande priser) | L5: I relation till BNP (%)
A6: År | B6: Miljoner kr | C6: Export av varor och tjänster | D6: Import av varor och tjänster | E6: Hushållens kons. utgifter | F6: Offentliga kons. utgifter | G6: Brutto- invest- eringar | H6: Volymförändring, % | I6: Volymindex, år 1993=100 | J6: 1 000 personer | K6: Tusentals kronor | L6: Export av varor och tjänster | M6: Import av varor och tjänster | N6: Hushållens kons. utgifter | O6: Offentliga kons. utgifter | P6: Bruttoinvesteringar
A7: 1993 | B7: 1655098 | C7: 506509 | D7: 457314 | E7: 842450 | F7: 453561 | G7: 309892 | I7: 100 | J7: 8718.561 | K7: =B7/J7 -> 189.8361438 | L7: =+C7/B7*100 -> 30.60296127 | M7: =+D7/B7*100 -> 27.63062973 | N7: =+E7/B7*100 -> 50.90030923 | O7: =+F7/B7*100 -> 27.40387578 | P7: =+G7/B7*100 -> 18.72348344
A8: 1994 | B8: 1764642 | C8: 596662 | D8: 531822 | E8: 880353 | F8: 466145 | G8: 353304 | H8: 4 | I8: 104 | J8: 8780.745 | K8: =B8/J8 -> 200.96723 | L8: =+C8/B8*100 -> 33.81207066 | M8: =+D8/B8*100 -> 30.13767098 | N8: =+E8/B8*100 -> 49.88847596 | O8: =+F8/B8*100 -> 26.41583959 | P8: =+G8/B8*100 -> 20.02128477
A9: 1995 | B9: 1904951 | C9: 711306 | D9: 597035 | E9: 915547 | F9: 485400 | G9: 389733 | H9: 4.1 | I9: 108.3 | J9: 8826.9385 | K9: 215.8110652 | L9: =+C9/B9*100 -> 37.33985809 | M9: 31.3412261 | N9: 48.0614462 | O9: 25.48097038 | P9: 20.45895144
A10: 1996 | B10: 1957814 | C10: 707291 | D10: 594783 | E10: 944896 | F10: 505010 | G10: 395400 | H10: 1.7 | I10: 110.1 | J10: 8840.9975 | K10: 221.447184 | L10: 36.12656769 | M10: 30.37995438 | N10: 48.2628074 | O10: 25.79458519 | P10: 20.1959941
A11: 1997 | B11: 2048059 | C11: 803487 | D11: 671011 | E11: 988614 | F11: 517735 | G11: 409234 | H11: 3.1 | I11: 113.5 | J11: 8846.062 | K11: 231.5221168 | L11: 39.23163346 | M11: 32.76326512 | N11: 48.27077736 | O11: 25.27930104 | P11: 19.98155327
A12: 1998 | B12: 2153527 | C12: 864216 | D12: 736603 | E12: 1025676 | F12: 545780 | G12: 454458 | H12: 4.2 | I12: 118.3 | J12: 8850.9735 | K12: 243.3096201 | L12: 40.13026073 | M12: 34.20449337 | N12: 47.62772884 | O12: 25.34354108 | P12: 21.10296272
A13: 1999 | B13: 2266528 | C13: 910619 | D13: 785830 | E13: 1086322 | F13: 574326 | G13: 481091 | H13: 4.2 | I13: 123.3 | J13: 8857.874 | K13: 255.8772003 | L13: 40.17682552 | M13: 34.67109164 | N13: 47.92890271 | O13: 25.33946194 | P13: 21.22590147
A14: 2000 | B14: 2408775 | C14: 1041685 | D14: 920796 | E14: 1162762 | F14: 589625 | G14: 535499 | H14: 4.6 | I14: 129 | J14: 8872.109 | K14: 271.4997077 | L14: 43.24542558 | M14: 38.22673351 | N14: 48.27192245 | O14: 24.47820988 | P14: 22.2311756
A15: 2001 | B15: 2504784 | C15: 1074540 | D15: 943544 | E15: 1197000 | F15: 618123 | G15: 558665 | H15: 1.4 | I15: 130.7 | J15: 8895.96 | K15: 281.5642157 | L15: 42.8995075 | M15: 37.66967531 | N15: 47.78855183 | O15: 24.67769676 | P15: 22.30391922
A16: 2002 | B16: 2603427 | C16: 1071614 | D16: 935246 | E16: 1244435 | F16: 660161 | G16: 562463 | H16: 2.3 | I16: 133.7 | J16: 8924.958 | K16: 291.7018769 | L16: 41.16166883 | M16: 35.92364987 | N16: 47.7998807 | O16: 25.35738471 | P16: 21.60471563
A17: 2003 | B17: 2701410 | C17: 1089643 | D17: 945281 | E17: 1288901 | F17: 694207 | G17: 573940 | H17: 1.9 | I17: 136.2 | J17: 8958.229 | K17: 301.5562563 | L17: 40.33608375 | M17: 34.99213374 | N17: 47.71215773 | O17: 25.69795033 | P17: 21.24594193
A18: 2004 | B18: 2825986 | C18: 1207231 | D18: 1017834 | E18: 1331701 | F18: 706829 | G18: 598059 | H18: 4.2 | I18: 141.9 | J18: 8993.531 | K18: 314.2243019 | L18: 42.71893067 | M18: 36.01695125 | N18: 47.12341109 | O18: 25.0117658 | P18: 21.16284369
A19: 2005 | B19: 2927127 | C19: 1326914 | D19: 1136788 | E19: 1385835 | F19: 728352 | G19: 622814 | H19: 2.8 | I19: 145.9 | J19: 9029.572 | K19: 324.1711789 | L19: 45.33161697 | M19: 38.83630604 | N19: 47.34454638 | O19: 24.88282879 | P19: 21.2773139
A20: 2006 | B20: 3117499 | C20: 1483878 | D20: 1269817 | E20: 1436697 | F20: 766709 | G20: 700032 | H20: 4.7 | I20: 152.7 | J20: 9080.5045 | K20: 343.317819 | L20: 47.59834726 | M20: 40.73191363 | N20: 46.08492256 | O20: 24.5937208 | P20: 22.454923
A21: 2007 | B21: 3312135 | C21: 1580684 | D21: 1385231 | E21: 1519157 | F21: 800024 | G21: 797501 | H21: 3.2 | I21: 157.6 | J21: 9148.092 | K21: 362.0574651 | L21: 47.72402091 | M21: 41.82290275 | N21: 45.86639735 | O21: 24.15432946 | P21: 24.07815503
A22: 2008 | B22: 3391873 | C22: 1662496 | D22: 1485446 | E22: 1563188 | F22: 838906 | G22: 812729 | H22: -0.9 | I22: 156.2 | J22: 9219.637 | K22: 367.8965886 | L22: 49.01409929 | M22: 43.79426942 | N22: 46.0862774 | O22: 24.73282461 | P22: 23.96106812
A23: 2009 | B23: 3324135 | C23: 1444640 | D23: 1279765 | E23: 1612235 | F23: 866897 | G23: 680128 | H23: -4.3 | I23: 149.5 | J23: 9298.5145 | K23: 357.4909734 | L23: 43.45912546 | M23: 38.49918851 | N23: 48.5008882 | O23: 26.07887465 | P23: 20.4603002
A24: 2010 | B24: 3551514 | C24: 1593814 | D24: 1428222 | E24: 1696742 | F24: 892863 | G24: 796317 | H24: 5.8 | I24: 158.1 | J24: 9378.126 | K24: 378.7018856 | L24: 44.87702991 | M24: 40.21445502 | N24: 47.77517419 | O24: 25.14034859 | P24: 22.42190232
A25: 2011 | B25: 3704817 | C25: 1682510 | D25: 1518109 | E25: 1752181 | F25: 927335 | G25: 860900 | H25: 3.2 | I25: 163.2 | J25: 9449.2125 | K25: 392.0768001 | L25: 45.41411897 | M25: 40.97662584 | N25: 47.29467069 | O25: 25.03052108 | P25: 23.2373151
A26: 2012 | B26: 3724495 | C26: 1669824 | D26: 1507098 | E26: 1780674 | F26: 961938 | G26: 819157 | H26: -0.4 | I26: 162.5 | J26: 9519.374 | K26: 391.2541938 | L26: 44.83356804 | M26: 40.4644925 | N26: 47.80981046 | O26: 25.82734035 | P26: 21.99377365
A27: 2013 | B27: 3804976 | C27: 1626105 | D27: 1480287 | E27: 1823615 | F27: 1002277 | G27: 833266 | H27: 1.1 | I27: 164.3 | J27: 9600.3785 | K27: =B27/J27 -> 396.3360403 | L27: =+C27/B27*100 -> 42.73627481 | M27: =+D27/B27*100 -> 38.90397732 | N27: =+E27/B27*100 -> 47.92710913 | O27: =+F27/B27*100 -> 26.3412174 | P27: =+G27/B27*100 -> 21.89937598
A28: 2014 | B28: 3963666 | C28: 1722559 | D28: 1599904 | E28: 1892031 | F28: 1042708 | G28: 906272 | H28: 2.3 | I28: 168.1 | J28: 9696.1095 | K28: 408.7893191 | L28: 43.4587324 | M28: 40.36424865 | N28: 47.73437015 | O28: 26.30665651 | P28: 22.86448959
A29: 2015 | B29: 4230936 | C29: 1849404 | D29: 1711905 | E29: 1991284 | F29: 1095585 | G29: 1006568 | H29: 4.4 | I29: 175.5 | J29: 9799.186 | K29: 431.7640261 | L29: 43.71146243 | M29: 40.46161417 | N29: 47.06485752 | O29: 25.89462474 | P29: 23.79066949
A30: 2016 | B30: 4392801 | C30: 1886161 | D30: 1779717 | E30: 2052532 | F30: 1164217 | G30: 1069608 | H30: 2.1 | I30: 179.2 | J30: 9923.085 | K30: 442.6850118 | L30: 42.93754714 | M30: 40.51440072 | N30: 46.72490286 | O30: 26.50283953 | P30: 24.34911119
A31: 2017 | B31: 4575114 | C31: 2009287 | D31: 1928482 | E31: 2140474 | F31: 1205849 | G31: 1147986 | H31: 1.9 | I31: 182.6 | J31: 10057.6975 | K31: 454.8868168 | L31: 43.91774719 | M31: 42.15156169 | N31: 46.78515115 | O31: 26.35669843 | P31: 25.09196492
A32: 2018 | B32: 4777837 | C32: 2194979 | D32: 2124602 | E32: 2236047 | F32: 1260899 | G32: 1210514 | H32: 1.8 | I32: 185.8 | J32: 10175.2135 | K32: 469.5564373 | L32: 45.94085148 | M32: 44.46786276 | N32: 46.80040361 | O32: 26.39058218 | P32: 25.33602549
A33: 2019 | B33: 5021382 | C33: 2424758 | D33: 2232631 | E33: 2300307 | F33: 1299852 | G33: 1229096 | H33: 2.6 | I33: 190.7 | J33: 10278.887 | K33: =B33/J33 -> 488.5141747 | L33: =+C33/B33*100 -> 48.28865838 | M33: =+D33/B33*100 -> 44.46248065 | N33: =+E33/B33*100 -> 45.8102371 | O33: =+F33/B33*100 -> 25.88633966 | P33: =+G33/B33*100 -> 24.47724551
A34: 2020 | B34: 5012855 | C34: 2220062 | D34: 2014527 | E34: 2249509 | F34: 1333634 | G34: 1224177 | H34: -1.9 | I34: 187 | J34: 10353.442 | K34: =B34/J34 -> 484.1727997 | L34: =+C34/B34*100 -> 44.28737715 | M34: =+D34/B34*100 -> 40.18721866 | N34: =+E34/B34*100 -> 44.87480687 | O34: =+F34/B34*100 -> 26.6042804 | P34: =+G34/B34*100 -> 24.42075424
A35: 2021 | B35: 5417760 | C35: 2572582 | D35: 2363552 | E35: 2429525 | F35: 1410050 | G35: 1369155 | H35: 5.2 | I35: 196.7 | J35: 10415.8105 | K35: =B35/J35 -> 520.147712 | L35: =+C35/B35*100 -> 47.48423703 | M35: =+D35/B35*100 -> 43.62600041 | N35: =+E35/B35*100 -> 44.8437177 | O35: =+F35/B35*100 -> 26.02643897 | P35: =+G35/B35*100 -> 25.27160672
A36: 2022 | B36: 5816415 | C36: 3159015 | D36: 3071049 | E36: 2665339 | F36: 1497226 | G36: 1565884 | H36: 1.3 | I36: 199.2 | J36: 10513 | K36: =B36/J36 -> 553.259298 | L36: =+C36/B36*100 -> 54.31206336 | M36: =+D36/B36*100 -> 52.79968847 | N36: =+E36/B36*100 -> 45.82442965 | O36: =+F36/B36*100 -> 25.74138881 | P36: =+G36/B36*100 -> 26.92180665
A37: 2023 | B37: 6143187 | C37: 3390786 | D37: 3220494 | E37: 2798083 | F37: 1622880 | G37: 1551932 | H37: -0.2 | I37: 198.8 | J37: 10593 | K37: =B37/J37 -> 579.9289153 | L37: =+C37/B37*100 -> 55.19587797 | M37: =+D37/B37*100 -> 52.42383147 | N37: =+E37/B37*100 -> 45.54774256 | O37: =+F37/B37*100 -> 26.41755818 | P37: =+G37/B37*100 -> 25.26265276
B39: 2025-11-28: BNP per capita har rättats för åren 2022 och 2023 på grund av ett mindre fel.
B40: 2025-11-28: GDP per capita has been corrected for the years 2022 and 2023 due to a minor error.

Sheet Graph 1
B1: Gross domestic product (GDP) 1993-
B2: Volume index, year 1993=100

Sheet Graph 2
B1: Gross domestic product (GDP) 1994-
B2: Change in volume, percent.

Sheet Graph 3
B1: Gross domestic product (GDP) per capita 1993-
B2: SEK thousand. Current prices

Sheet Graph 4
B1: Exports and imports of goods and services 1993-
B2: Relation to GDP, percent. Current prices

Sheet Graph 5
B1: Consumption and capital formation 1993-
B2: Relation to GDP, percent. Current prices
B24: N.B. | C24: HFCE | D24: Household final consumption expenditure
C25: GFCE | D25: Government final consumption expenditure
C26: GCF | D26: Gross capital formation
